bitfinex/quotes_SOLUSD_20251117
["timestamp","ask_amount","ask_price","bid_price","bid_amount"]
[1763365276892,0.6,141.75,141.71,0.66]
[1763365277062,0.6,141.75,141.67,0.1]
[1763365277265,0.6,141.75,141.7,1.78887605]
[1763365277474,0.6,141.75,141.71,1.78887605]
[1763365278162,0.6,141.75,141.71,2.50887605]
[1763365280085,0.6,141.75,141.7,1.78887605]
[1763365280283,0.6,141.75,141.68,1.78887605]
[1763365280284,102.76887605,141.74,141.68,1.78887605]
[1763365280589,1.78887605,141.72,141.67,1.88887605]
[1763365280973,0.6,141.71,141.67,0.82]
[1763365281572,102.76887605,141.74,141.69,1.78887605]
[1763365281773,101.58,141.74,141.7,1.78887605]
[1763365282000,100.98,141.74,141.71,2.50887605]
[1763365284198,100.98,141.74,141.72,0.72]
[1763365284386,100.98,141.74,141.71,1.78887605]
[1763365284990,100.98,141.74,141.71,2.50887605]
[1763365285592,100.98,141.74,141.72,0.72]
[1763365285889,100.98,141.73,141.71,2.50887605]
[1763365286381,100.98,141.73,141.72,0.72]
[1763365286581,100.98,141.73,141.72,2.50887605]
[1763365287879,0.6,141.78,141.72,2.50887605]
[1763365288080,0.6,141.78,141.74,1.78887605]
[1763365288598,0.6,141.78,141.74,2.50887605]
[1763365288977,0.6,141.78,141.74,1.78887605]
[1763365289305,1.78887605,141.77,141.72,1.78887605]
[1763365289481,1.78887605,141.76,141.71,1.78887605]
[1763365289680,1.78887605,141.75,141.7,1.78887605]
[1763365289885,1.78887605,141.74,141.69,1.78887605]
[1763365290201,2.38887605,141.74,141.69,1.78887605]
[1763365290391,2.38887605,141.74,141.69,2.50887605]
[1763365290392,0.6,141.73,141.69,2.50887605]
[1763365290784,0.6,141.73,141.69,3.51618912]
[1763365290980,9.78882769,141.75,141.7,2.79618912]
[1763365291185,0.6,141.74,141.7,2.79618912]
[1763365291581,0.6,141.74,141.7,3.48618912]
[1763365294083,0.6,141.74,141.7,0.69]
[1763365294283,0.6,141.74,141.7,3.48618912]
[1763365294601,3.39618912,141.74,141.69,3.48618912]
[1763365294793,100.98,141.73,141.69,3.48618912]
[1763365295102,101.58,141.73,141.69,3.48618912]
[1763365295323,0.6,141.72,141.69,2.79618912]
[1763365295531,0.6,141.72,141.68,3.48618912]
[1763365295714,3.39618912,141.72,141.67,2.89618912]
[1763365295899,3.39618912,141.72,141.67,3.58618912]
[1763365296097,0.6,141.71,141.67,3.58618912]
[1763365297395,0.6,141.71,141.67,0.1]
[1763365297798,3.39618912,141.71,141.67,0.1]
[1763365297997,113.56501681,141.7,141.67,0.1]
[1763365298216,0.6,141.69,141.67,0.1]
[1763365298619,3.39618912,141.69,141.67,0.1]
[1763365298991,10.38882769,141.68,141.67,0.1]
[1763365299197,13.18501681,141.68,141.67,0.1]
[1763365302515,22.6512,141.68,141.67,0.1]
[1763365302824,0.6,141.69,141.67,0.1]
[1763365303136,3.39618912,141.69,141.67,0.1]
[1763365303527,3.39618912,141.68,141.67,0.1]
[1763365304523,0.6,141.68,141.67,0.1]
[1763365304830,3.39618912,141.68,141.67,0.1]
[1763365306845,9.78882769,141.7,141.67,3.58618912]
[1763365307329,10.38882769,141.7,141.67,0.79]
[1763365307526,22.6512,141.72,141.67,2.89618912]
[1763365307527,25.44738912,141.72,141.67,2.89618912]
[1763365307712,3.39618912,141.72,141.68,0.69]
[1763365308837,2.79618912,141.7,141.67,0.1]
[1763365309216,2.79618912,141.68,141.67,0.1]
[1763365309628,12.58501681,141.69,141.67,0.1]
[1763365309827,0.6,141.68,141.67,0.1]
[1763365310031,13.18501681,141.69,141.67,0.1]
[1763365311057,3.39618912,141.71,141.67,0.79]
[1763365311332,2.79618912,141.71,141.67,0.79]
[1763365311532,103.1,141.71,141.67,3.58618912]
[1763365311916,103.1,141.71,141.68,0.69]
[1763365313645,105.89618912,141.71,141.68,0.69]
[1763365314020,103.1,141.71,141.68,0.69]
[1763365314839,103.1,141.71,141.7,2.79618912]
[1763365315041,103.1,141.71,141.7,3.48618912]
[1763365317120,103.1,141.71,141.7,0.69]
[1763365317436,103.1,141.71,141.7,3.48618912]
[1763365319843,103.1,141.74,141.7,3.48618912]
[1763365320038,103.1,141.74,141.71,0.69]
[1763365320246,103.1,141.74,141.72,2.79618912]
[1763365320433,103.1,141.74,141.73,2.79618912]
[1763365320634,103.1,141.78,141.73,2.79618912]
[1763365320832,9.78882769,141.8,141.75,2.79618912]
[1763365321031,22.6512,141.83,141.77,2.79618912]
[1763365321228,3.39618912,141.82,141.77,3.47618912]
[1763365321432,9.78882769,141.81,141.77,3.47618912]
[1763365321931,10.38882769,141.81,141.77,3.47618912]
[1763365322248,9.78882769,141.81,141.77,0.68]
[1763365322545,13.18501681,141.81,141.77,0.68]
[1763365323126,3.39618912,141.8,141.75,2.79618912]
[1763365323330,0.6,141.8,141.76,2.79618912]
[1763365323633,0.6,141.8,141.76,3.47618912]
[1763365323828,23.2512,141.81,141.76,2.79618912]
[1763365324045,26.04738912,141.81,141.77,0.68]
[1763365324239,0.6,141.83,141.79,2.79618912]
[1763365324432,2.79618912,141.8,141.74,0.68]
[1763365324640,2.79618912,141.77,141.67,0.1]
[1763365324833,2.79618912,141.76,141.72,0.68]
[1763365325039,2.79618912,141.75,141.72,0.68]
[1763365325439,25.44738912,141.76,141.72,0.68]
[1763365325953,26.04738912,141.76,141.72,0.68]
[1763365326533,23.2512,141.76,141.72,0.68]
[1763365326748,26.04738912,141.76,141.72,0.68]
[1763365328047,2.79618912,141.75,141.72,0.68]
[1763365328953,26.04738912,141.76,141.72,0.68]
[1763365329455,25.44738912,141.76,141.72,0.68]
[1763365329664,26.04738912,141.76,141.72,0.68]
[1763365330038,2.79618912,141.76,141.72,0.68]
[1763365330236,3.39618912,141.76,141.72,0.68]
[1763365331057,9.78882769,141.76,141.72,3.47618912]
[1763365331560,10.38882769,141.76,141.72,3.47618912]
[1763365331751,9.78882769,141.76,141.73,0.68]
[1763365332141,128.54738912,141.78,141.73,3.47618912]
[1763365332342,9.78882769,141.77,141.74,2.79618912]
[1763365332533,9.78882769,141.77,141.74,3.47618912]
[1763365332736,9.78882769,141.77,141.75,0.68]
[1763365333238,9.78882769,141.77,141.74,2.79618912]
[1763365333432,9.78882769,141.77,141.74,3.47618912]
[1763365333661,9.78882769,141.77,141.74,0.68]
[1763365333861,9.78882769,141.77,141.75,0.68]
[1763365334950,9.78882769,141.77,141.74,2.79618912]
[1763365335144,103.1,141.78,141.75,0.68]
[1763365335663,103.1,141.78,141.75,3.47618912]
[1763365335860,103.1,141.78,141.77,2.79618912]
[1763365336169,103.1,141.78,141.76,0.68]
[1763365336341,103.1,141.78,141.75,2.79618912]
[1763365336738,103.1,141.78,141.75,3.47618912]
[1763365336962,103.1,141.78,141.75,2.79618912]
[1763365337163,103.1,141.78,141.76,0.68]
[1763365338243,103.7,141.78,141.74,0.69]
[1763365338438,9.78882769,141.77,141.7,22.6512]
[1763365338638,2.79618912,141.74,141.67,0.1]
[1763365338840,2.79618912,141.74,141.69,2.79618912]
[1763365339158,2.79618912,141.74,141.7,3.48618912]
[1763365339549,2.79618912,141.74,141.71,0.69]
[1763365339750,2.79618912,141.72,141.71,0.69]
[1763365339949,2.79618912,141.72,141.68,2.79618912]
[1763365340153,2.79618912,141.72,141.7,0.69]
[1763365342066,2.79618912,141.73,141.7,0.69]
[1763365343667,2.79618912,141.74,141.7,0.69]
[1763365344154,2.79618912,141.73,141.7,0.69]
[1763365344853,103.1,141.74,141.7,0.69]
[1763365345059,103.1,141.74,141.71,2.79618912]
[1763365345441,103.1,141.74,141.72,0.69]
[1763365346450,105.89618912,141.74,141.72,0.69]
[1763365347259,103.1,141.74,141.72,0.69]
[1763365347657,103.1,141.74,141.72,3.48618912]
[1763365348167,103.1,141.74,141.73,0.69]
[1763365348673,105.89618912,141.74,141.71,0.69]
[1763365348969,105.89618912,141.74,141.72,0.69]
[1763365352146,103.1,141.74,141.72,0.69]
[1763365356681,104.8890102,141.74,141.72,0.69]
[1763365356981,1.7890102,141.73,141.7,0.67]
[1763365357152,1.7890102,141.72,141.7,0.67]
[1763365358273,1.7890102,141.73,141.7,0.67]
[1763365359371,103.7,141.74,141.67,0.77]
[1763365359372,1.7890102,141.71,141.67,0.77]
[1763365359705,104.8890102,141.71,141.67,0.77]
[1763365359994,1.7890102,141.7,141.67,0.77]
[1763365360153,1.7890102,141.69,141.67,0.1]
[1763365360360,1.7890102,141.69,141.67,0.77]
[1763365361289,2.3890102,141.68,141.67,0.1]
[1763365361584,12.17783789,141.68,141.67,0.1]
[1763365363991,1.7890102,141.68,141.67,0.1]
[1763365364171,104.8890102,141.69,141.67,0.1]
[1763365364479,103.1,141.69,141.68,0.67]
[1763365364888,1.7890102,141.71,141.68,0.67]
[1763365365189,1.7890102,141.72,141.68,0.67]
[1763365365592,1.7890102,141.72,141.68,2.4590102]
[1763365365777,9.78882769,141.73,141.68,2.4590102]
[1763365365969,11.57783789,141.73,141.69,0.67]
[1763365366289,103.1,141.74,141.69,2.4590102]
[1763365366492,1.7890102,141.73,141.7,0.67]
[1763365366998,104.8890102,141.74,141.7,2.4590102]
[1763365367396,104.8890102,141.74,141.71,0.67]
[1763365368097,103.1,141.74,141.71,0.67]
[1763365368499,103.1,141.74,141.71,2.4590102]
[1763365369010,103.1,141.74,141.72,0.67]
[1763365372102,103.1,141.74,141.72,2.4590102]
[1763365373402,103.1,141.74,141.73,0.67]
[1763365374181,103.1,141.74,141.73,2.4590102]
[1763365374599,103.1,141.74,141.73,0.67]
[1763365376682,103.1,141.74,141.73,2.4590102]
[1763365377097,103.1,141.74,141.73,0.67]
[1763365380082,1.7890102,141.77,141.73,0.67]
[1763365380283,1.7890102,141.74,141.69,22.6512]
[1763365380484,104.8890102,141.75,141.7,2.4490102]
[1763365380689,104.8890102,141.75,141.71,1.7890102]
[1763365380885,105.4890102,141.75,141.71,0.66]
[1763365381204,1.7890102,141.74,141.71,0.66]
[1763365382187,105.4890102,141.75,141.71,0.66]
[1763365382997,105.4890102,141.74,141.69,25.1002102]
[1763365383199,103.7,141.74,141.69,0.66]
[1763365383402,1.7890102,141.72,141.69,0.66]
[1763365383983,1.7890102,141.73,141.69,0.66]
[1763365384205,2.3890102,141.73,141.69,0.66]
[1763365384882,104.8890102,141.74,141.69,2.4490102]
[1763365385082,105.4890102,141.74,141.69,2.4490102]
[1763365385287,105.4890102,141.74,141.7,0.66]
[1763365386697,1.7890102,141.73,141.7,0.66]
[1763365388202,105.4890102,141.74,141.7,0.66]
[1763365388704,103.1,141.73,141.7,0.66]
[1763365389496,1.7890102,141.71,141.67,0.1]
[1763365389687,1.7890102,141.71,141.67,0.76]
[1763365389891,2.3890102,141.71,141.67,0.76]
[1763365390090,0.6,141.71,141.67,0.76]
[1763365390305,2.3890102,141.71,141.67,0.76]
[1763365390792,11.57783789,141.72,141.67,2.5490102]
[1763365391297,12.17783789,141.72,141.68,0.66]
[1763365392795,11.57783789,141.72,141.68,0.66]
[1763365392995,0.6,141.71,141.68,0.66]
[1763365394309,2.3890102,141.71,141.67,0.76]
[1763365394506,1.7890102,141.69,141.67,0.1]
[1763365394912,0.6,141.68,141.67,0.1]
[1763365395230,1.7890102,141.69,141.67,0.1]
[1763365395593,105.4890102,141.7,141.67,0.1]
[1763365396022,1.7890102,141.69,141.67,0.1]
[1763365398129,103.7,141.68,141.67,0.1]
[1763365398332,105.4890102,141.68,141.67,0.1]
[1763365399126,115.27783789,141.68,141.67,0.1]
[1763365399295,12.17783789,141.68,141.67,0.1]
[1763365405215,10.38882769,141.68,141.67,0.1]
[1763365405421,12.17783789,141.68,141.67,0.1]
[1763365408111,11.57783789,141.68,141.67,0.1]
[1763365408313,12.17783789,141.68,141.67,0.1]
[1763365409419,11.57783789,141.68,141.67,0.1]
[1763365410227,1.7890102,141.7,141.67,0.77]
[1763365411643,1.7890102,141.69,141.67,0.77]
[1763365412941,1.7890102,141.69,141.67,0.1]
[1763365413139,1.7890102,141.68,141.67,0.1]
[1763365414151,1.7890102,141.69,141.67,0.77]
[1763365414944,2.79783877,141.69,141.67,0.77]
[1763365415735,2.79783877,141.69,141.67,0.1]
[1763365416239,0.6,141.7,141.67,0.1]
[1763365416436,2.79783877,141.69,141.67,0.1]
[1763365417038,2.79783877,141.69,141.67,0.77]
[1763365417623,2.79783877,141.69,141.67,0.1]
[1763365417818,2.79783877,141.69,141.67,0.77]
[1763365420439,2.79783877,141.69,141.67,0.1]
[1763365420945,103.1,141.68,141.67,0.1]
[1763365421332,103.1,141.68,141.67,0.77]
[1763365421725,103.1,141.68,141.67,0.1]
[1763365422543,103.1,141.68,141.67,0.77]
[1763365425844,103.1,141.68,141.67,3.56783877]
[1763365432324,103.1,141.68,141.67,0.77]
[1763365434632,103.1,141.68,141.67,3.56783877]
[1763365435131,103.1,141.68,141.67,0.77]
[1763365437235,103.1,141.68,141.67,3.56783877]
[1763365439165,103.1,141.68,141.67,0.77]
[1763365439350,103.1,141.68,141.67,0.1]
[1763365439938,103.1,141.68,141.67,0.77]
[1763365442066,103.1,141.68,141.67,3.56783877]
[1763365442247,103.1,141.68,141.67,0.1]
[1763365443548,103.1,141.68,141.67,0.78]
[1763365445354,103.1,141.68,141.67,0.1]
[1763365447839,103.1,141.68,141.67,3.57783877]
[1763365448252,103.1,141.68,141.67,26.22903877]
[1763365448946,103.1,141.72,141.67,3.57783877]
[1763365449161,103.1,141.72,141.7,2.79783877]
[1763365449564,103.1,141.72,141.71,0.68]
[1763365449945,103.1,141.72,141.7,2.79783877]
[1763365450145,103.1,141.72,141.71,0.68]
[1763365450750,103.1,141.72,141.71,3.47783877]
[1763365451670,9.78882769,141.75,141.71,3.47783877]
[1763365451971,12.58666646,141.75,141.71,0.68]
[1763365452173,3.39783877,141.74,141.7,0.68]
[1763365452477,3.39783877,141.74,141.69,2.79783877]
[1763365452678,0.6,141.74,141.7,0.68]
[1763365452875,3.39783877,141.73,141.68,0.68]
[1763365453190,2.79783877,141.72,141.67,0.1]
[1763365453377,2.79783877,141.71,141.67,0.1]
[1763365453556,3.39783877,141.71,141.67,0.1]
[1763365453759,0.6,141.7,141.67,0.1]
[1763365454190,9.63999514,141.84,141.73,22.6512]
[1763365454486,0.2,141.86,141.85,22.6512]
[1763365454783,0.2,141.88,141.85,35.23786646]
[1763365455075,0.92,141.96,141.89,22.6512]
[1763365455251,0.2,141.96,141.87,22.6512]
[1763365455447,0.72,141.93,141.89,2.79783877]
[1763365455673,0.72,141.93,141.87,22.6512]
[1763365455878,0.72,141.93,141.89,2.79783877]
[1763365459480,9.98882769,141.96,141.85,2.82455954]
[1763365459481,0.91,141.9,141.85,2.82455954]
[1763365459663,0.91,141.9,141.87,2.79783877]
[1763365459857,0.71,141.89,141.85,2.82455954]
[1763365460055,0.71,141.89,141.85,5.62239831]
[1763365460261,0.71,141.89,141.87,2.79783877]
[1763365460877,0.71,141.89,141.86,2.82535758]
[1763365461061,0.71,141.89,141.87,2.79783877]
[1763365461259,0.71,141.89,141.88,2.79783877]
[1763365461655,0.71,141.89,141.85,25.47675716]
[1763365461870,0.71,141.89,141.87,2.79783877]
[1763365463057,0.2,141.9,141.88,2.79783877]
[1763365463379,0.91,141.9,141.88,2.79783877]
[1763365463775,0.91,141.9,141.89,2.79783877]
[1763365463776,0.2,141.9,141.89,2.79783877]
[1763365465675,0.2,141.9,141.89,12.68666646]
[1763365465876,0.2,141.9,141.89,2.79783877]
[1763365469367,0.91,141.9,141.88,2.79783877]
[1763365469871,0.91,141.9,141.87,35.33786646]
[1763365470080,0.91,141.9,141.89,2.79783877]
[1763365470996,0.2,141.9,141.89,2.79783877]
[1763365471178,0.86,141.9,141.89,2.79783877]
[1763365472783,0.86,141.9,141.88,2.79783877]
[1763365474690,0.66,141.89,141.87,38.13570523]
[1763365474893,0.66,141.89,141.87,25.44903877]
[1763365475095,0.66,141.89,141.82,7.05110386]
[1763365475096,0.66,141.89,141.86,2.82535758]
[1763365475310,0.66,141.89,141.83,2.79783877]
[1763365475471,3.45783877,141.89,141.82,2.79783877]
[1763365475666,0.66,141.89,141.83,2.79783877]
[1763365475897,0.66,141.88,141.83,2.79783877]
[1763365476778,0.66,141.88,141.83,1.78572816]
[1763365476984,0.66,141.88,141.84,1.78572816]
[1763365477599,0.66,141.88,141.83,1.78572816]
[1763365478684,0.66,141.88,141.84,1.78572816]
[1763365478898,0.66,141.88,141.83,1.78572816]
[1763365479078,0.66,141.88,141.82,43.75968254]
[1763365479411,0.66,141.88,141.82,24.43692816]
[1763365480611,2.44572816,141.88,141.82,24.43692816]
[1763365480783,0.66,141.87,141.82,24.43692816]
[1763365481199,0.66,141.87,141.82,22.6512]
[1763365481407,0.66,141.87,141.82,24.43692816]
[1763365482506,0.66,141.87,141.83,1.78572816]
[1763365482809,0.66,141.87,141.82,22.6512]
[1763365483105,0.66,141.87,141.83,1.78572816]
[1763365487306,0.66,141.87,141.82,24.43692816]
[1763365489484,0.66,141.87,141.83,1.78572816]
[1763365491203,0.66,141.87,141.82,22.6512]
[1763365493092,0.66,141.87,141.8,1.78572816]
[1763365493495,0.66,141.87,141.8,22.98339641]
[1763365494105,9.78882769,141.86,141.8,22.98339641]
[1763365494309,9.78882769,141.86,141.8,1.78572816]
[1763365494489,0.66,141.85,141.8,1.78572816]
[1763365496094,0.66,141.85,141.81,1.78572816]
[1763365497424,103.76,141.85,141.81,1.78572816]
[1763365497790,0.66,141.84,141.81,1.78572816]
[1763365498813,0.66,141.84,141.8,21.19916616]
[1763365499225,103.76,141.85,141.82,1.78572816]
[1763365499822,103.1,141.85,141.82,1.78572816]
[1763365500011,0.66,141.84,141.82,1.78572816]
[1763365500408,0.66,141.84,141.81,1.78572816]
[1763365500593,0.66,141.84,141.82,1.78572816]
[1763365500999,103.1,141.85,141.83,1.78572816]
[1763365501217,103.1,141.85,141.84,1.78572816]
[1763365502812,103.1,141.85,141.84,24.43692816]
[1763365503114,0.89,141.9,141.85,22.6512]
[1763365503323,0.69,141.89,141.87,1.78572816]
[1763365503703,0.2,141.9,141.88,1.78572816]
[1763365504102,0.89,141.9,141.88,1.78572816]
[1763365504421,0.89,141.9,141.87,1.78572816]
[1763365505616,0.69,141.89,141.85,22.6512]
[1763365506001,0.69,141.89,141.83,24.43692816]
[1763365506197,0.69,141.89,141.84,1.78572816]
[1763365507406,0.69,141.89,141.85,1.78572816]
[1763365508898,103.79,141.89,141.85,1.78572816]
[1763365509320,0.69,141.88,141.85,1.78572816]
[1763365509520,0.69,141.88,141.82,22.6512]
[1763365509714,0.69,141.88,141.84,1.78572816]
[1763365512404,0.69,141.88,141.82,22.6512]
[1763365512606,0.69,141.88,141.82,1.78572816]
[1763365512804,112.88882769,141.87,141.81,24.43692816]
[1763365513217,0.69,141.86,141.81,24.43692816]
[1763365513618,0.69,141.86,141.82,1.78572816]
[1763365514207,0.69,141.86,141.81,24.43692816]
[1763365514405,0.69,141.86,141.82,1.78572816]
[1763365518506,0.69,141.86,141.83,1.78572816]
[1763365519417,0.2,141.9,141.89,32.44002769]
[1763365519731,0.1,141.95,141.89,41.36866849]
[1763365519916,0.1,141.95,141.91,1.78572816]
[1763365520711,0.1,141.95,141.91,24.43692816]
[1763365521113,0.1,141.95,141.91,1.78572816]
[1763365521313,0.1,141.95,141.91,24.43692816]
[1763365521848,0.1,141.95,141.91,31.48364791]
[1763365522742,0.1,141.95,141.91,22.6512]
[1763365522944,0.1,141.95,141.91,24.43692816]
[1763365523311,0.78,141.95,141.91,24.43692816]
[1763365523512,0.68,141.94,141.91,1.78572816]
[1763365523839,0.68,141.94,141.9,24.43692816]
[1763365524023,0.68,141.94,141.91,1.78572816]
[1763365526938,0.68,141.94,141.9,24.43692816]
[1763365528045,0.68,141.94,141.91,1.78572816]
[1763365530447,0.68,141.94,141.9,22.6512]
[1763365530742,0.68,141.94,141.9,24.43692816]
[1763365531118,0.68,141.94,141.91,1.78572816]
[1763365531348,0.1,141.95,141.91,1.78572816]
[1763365531518,0.81,141.95,141.91,1.78572816]
[1763365531718,0.81,141.95,141.9,22.6512]
[1763365531939,0.81,141.95,141.91,1.78572816]
[1763365532142,0.71,141.94,141.91,1.78572816]
[1763365535131,0.71,141.94,141.9,24.43692816]
[1763365535644,0.81,141.92,141.9,24.43692816]
[1763365535855,0.81,141.92,141.9,22.6512]
[1763365536037,0.81,141.92,141.87,24.43692816]
[1763365536851,0.81,141.92,141.87,22.6512]
[1763365537046,0.81,141.92,141.88,1.78572816]
[1763365537555,0.81,141.92,141.9,1.78572816]
[1763365537849,0.81,141.92,141.89,24.43692816]
[1763365538257,0.81,141.92,141.89,1.78572816]
[1763365538460,0.81,141.92,141.89,24.43692816]
[1763365538965,0.81,141.92,141.89,25.43877368]
[1763365539865,0.81,141.92,141.89,2.78757368]
[1763365540361,0.81,141.92,141.9,2.78757368]
[1763365540733,0.1,141.92,141.9,2.78757368]
[1763365540945,0.1,141.92,141.91,2.78757368]
[1763365541845,0.1,141.92,141.88,29.69927512]
[1763365542152,0.1,141.92,141.91,2.78757368]
[1763365542351,0.1,141.92,141.88,29.69927512]
[1763365542564,0.1,141.92,141.9,22.6512]
[1763365542565,0.71,141.91,141.9,22.6512]
[1763365542739,0.71,141.91,141.88,25.43877368]
[1763365543169,0.71,141.91,141.89,2.78757368]
[1763365543347,0.1,141.92,141.9,2.78757368]
[1763365543549,0.1,141.92,141.91,2.78757368]
[1763365543754,0.1,141.92,141.91,25.43877368]
[1763365548068,0.1,141.92,141.91,2.78757368]
[1763365552767,0.1,141.92,141.91,32.48549343]
[1763365552947,0.1,141.92,141.91,42.27432112]
[1763365553866,0.1,141.92,141.91,35.22760137]
[1763365554974,0.1,141.92,141.91,25.43877368]
[1763365559986,0.81,141.92,141.91,22.6512]
[1763365560562,0.1,141.92,141.91,22.6512]
[1763365561201,0.82,141.92,141.91,22.6512]
[1763365561883,0.1,141.92,141.91,22.6512]
[1763365563205,0.1,141.92,141.9,91.73157592]
[1763365563206,3.60757368,141.92,141.9,88.94400224]
[1763365563688,0.72,141.91,141.9,88.94400224]
[1763365565897,0.1,141.92,141.9,114.38277592]
[1763365566801,0.82,141.92,141.9,111.59520224]
[1763365568673,0.1,141.92,141.9,114.38277592]
[1763365568992,0.1,141.92,141.91,2.78757368]
[1763365569784,0.1,141.92,141.9,114.38277592]
[1763365570185,0.82,141.92,141.9,114.38277592]
[1763365570993,0.82,141.92,141.9,111.59520224]
[1763365571696,0.82,141.92,141.9,114.38277592]
[1763365571876,0.1,141.92,141.9,114.38277592]
[1763365572066,0.82,141.92,141.9,114.38277592]
[1763365572272,0.1,141.92,141.9,114.38277592]
[1763365572482,0.82,141.92,141.9,114.38277592]
[1763365573488,0.82,141.92,141.9,111.59520224]
[1763365573692,0.82,141.92,141.9,114.38277592]
[1763365574008,0.82,141.92,141.9,111.59520224]
[1763365575885,3.60757368,141.92,141.9,111.59520224]
[1763365576085,3.50757368,141.91,141.9,88.94400224]
[1763365576699,0.1,141.92,141.9,91.73157592]
[1763365576902,0.82,141.92,141.9,91.73157592]
[1763365577077,0.82,141.92,141.9,88.94400224]
[1763365577884,0.82,141.92,141.91,22.6512]
[1763365578389,0.1,141.92,141.91,25.43877368]
[1763365578790,0.77,141.92,141.91,25.43877368]
[1763365579102,0.1,141.92,141.91,25.43877368]
[1763365580505,0.77,141.92,141.91,22.6512]
[1763365582503,3.55757368,141.92,141.9,88.94400224]
[1763365582709,2.78757368,141.91,141.9,88.94400224]
[1763365582888,3.45757368,141.91,141.9,88.94400224]
[1763365584009,0.67,141.91,141.9,88.94400224]
[1763365584903,3.45757368,141.91,141.9,88.94400224]
[1763365585913,0.67,141.91,141.9,88.94400224]
[1763365588214,3.45757368,141.91,141.9,88.94400224]
[1763365589424,0.67,141.91,141.9,88.94400224]
[1763365590208,0.1,141.92,141.9,88.94400224]
[1763365590715,0.82,141.92,141.9,88.94400224]
[1763365591996,0.1,141.92,141.91,2.78757368]
[1763365592204,0.72,141.91,141.9,111.59520224]
[1763365597116,0.1,141.92,141.9,114.38277592]
[1763365597317,0.1,141.92,141.91,2.78757368]
[1763365600604,0.82,141.92,141.9,114.38277592]
[1763365600920,0.82,141.92,141.9,113.37902737]
[1763365603424,0.1,141.92,141.9,113.37902737]
[1763365603725,0.82,141.92,141.9,113.37902737]
[1763365604429,0.1,141.92,141.91,1.78382513]
[1763365607017,0.1,141.92,141.9,111.59520224]
[1763365607208,0.1,141.92,141.91,1.78382513]
[1763365607809,0.82,141.92,141.9,111.59520224]
[1763365611529,0.1,141.92,141.9,113.37902737]
[1763365611732,0.1,141.92,141.91,1.78382513]
[1763365613034,0.1,141.92,141.91,31.48174488]
[1763365614511,0.1,141.92,141.91,18.61937257]
[1763365616222,0.1,141.92,141.91,11.57265282]
[1763365616425,0.1,141.92,141.91,18.61937257]
[1763365618442,0.1,141.92,141.91,11.57265282]
[1763365618624,0.1,141.92,141.91,18.61937257]
[1763365618825,0.1,141.92,141.91,11.57265282]
[1763365619434,0.1,141.92,141.91,1.78382513]
[1763365620531,0.1,141.92,141.91,8.83054488]
[1763365621632,0.1,141.92,141.91,18.61937257]
[1763365623445,0.1,141.92,141.91,21.44253663]
[1763365623852,0.1,141.92,141.91,18.61937257]
[1763365624334,0.1,141.95,141.94,32.44002769]
[1763365624548,0.1,141.95,141.94,34.22385282]
[1763365625825,0.1,141.95,141.94,41.26908319]
[1763365626619,0.2,141.98,141.97,22.6512]
[1763365626919,0.2,141.98,141.97,42.42039861]
[1763365627125,0.2,141.98,141.97,32.44002769]
[1763365627340,0.9,141.98,141.97,32.44002769]
[1763365627652,0.2,141.98,141.97,1.78382513]
[1763365627846,0.2,141.98,141.97,24.43502513]
[1763365628057,0.2,141.98,141.97,22.6512]
[1763365628058,0.9,141.98,141.97,22.6512]